lending/lending_fUSD_20260411
["ID","MTS","AMOUNT","RATE_DAILY","PERIOD"]
[420269486,1775891220689,296.10601614,9.506e-05,2]
[420269487,1775891220720,203.89398386,9.506e-05,2]
[420269488,1775891221098,368.22963186,9.506e-05,2]
[420269489,1775891223336,439.52777752,9.506e-05,2]
[420269490,1775891236268,150.0,9.5e-05,2]
[420269492,1775891275943,1600.0,8.89e-05,2]
[420269493,1775891287357,1217.0,8.89e-05,3]
[420269494,1775891335010,3837.68,9.111e-05,2]
[420269495,1775891350429,1276.0,9.111e-05,3]
[420269497,1775891357196,165.0,9.111e-05,3]
[420269499,1775891374165,-204.72,9.164e-05,2]
[420269500,1775891374194,-150.0,9.5e-05,2]
[420269501,1775891374220,-447.18897472,9.506e-05,2]
[420269502,1775891374244,-500.0,9.506e-05,2]
[420269503,1775891374268,-174.61919141,9.506e-05,2]
[420269504,1775891374292,-168.49266736,9.506e-05,2]
[420269505,1775891374318,-250.0,9.507e-05,2]
[420269506,1775891374345,-500.0,9.507e-05,2]
[420269507,1775891374372,-175.32523568,9.507e-05,2]
[420269508,1775891374402,-659.95089996,9.525e-05,2]
[420269513,1775891431785,-500.0,9.174e-05,2]
[420269514,1775891431799,-956.18741553,9.199e-05,2]
[420269515,1775891431813,-896.23258447,9.199e-05,2]
[420269516,1775891431826,-197.8342,9.407e-05,2]
[420269517,1775891431838,-500.0,9.483e-05,2]
[420269518,1775891431847,-500.0,9.483e-05,2]
[420269519,1775891431857,-500.0,9.483e-05,2]
[420269520,1775891431870,-476.01526008,9.483e-05,2]
[420269521,1775891431922,-23.98473992,9.483e-05,2]
[420269522,1775891431934,-500.0,9.483e-05,2]
[420269523,1775891431948,-501.67895364,9.483e-05,2]
[420269524,1775891431959,-496.99910004,9.525e-05,2]
[420269525,1775891431968,-157.0,9.525e-05,3]
[420269526,1775891431982,-1212.0,9.525e-05,3]
[420269527,1775891431992,-1200.0,9.541e-05,2]
[420269528,1775891432002,-46029.29793323,9.542e-05,2]
[420269529,1775891432016,-315.31506907,9.542e-05,2]
[420269530,1775891432031,-1042.34847306,9.542e-05,2]
[420269532,1775891432043,-1256.80455837,9.542e-05,2]
[420269541,1775891432140,-4437.99994,9.542e-05,2]
[420269545,1775891432155,-45820.74402627,9.542e-05,2]
[420269547,1775891432164,-500.0,9.561e-05,2]
[420269549,1775891432173,-25676.27437026,9.562e-05,2]
[420269550,1775891432187,-2021.97763837,9.562e-05,2]
[420269551,1775891432222,-474.41347366,9.562e-05,2]
[420269552,1775891438023,-367.0,9.561e-05,2]
[420269553,1775891438038,-133.0,9.561e-05,2]
[420269554,1775891438050,-470.22941727,9.561e-05,2]
[420269555,1775891438099,-29.77058273,9.561e-05,2]
[420269556,1775891438108,-500.0,9.561e-05,2]
[420269557,1775891438127,-451.78941727,9.561e-05,2]
[420269558,1775891438143,-48.21058273,9.561e-05,2]
[420269559,1775891438153,-308.85000046,9.561e-05,2]
[420269560,1775891438173,-500.0,9.561e-05,2]
[420269561,1775891438190,-2479.04892535,9.562e-05,2]
[420269562,1775891438210,-3335.28559236,9.562e-05,2]
[420269563,1775891438222,-500.0,9.573e-05,2]
[420269564,1775891438234,-285.11165338,9.573e-05,2]
[420269565,1775891438255,-214.88834662,9.573e-05,2]
[420269566,1775891438267,-500.0,9.573e-05,2]
[420269567,1775891438279,-166.66,9.574e-05,2]
[420269568,1775891438289,-150.99,9.574e-05,2]
[420269569,1775891438300,-313.67,9.574e-05,2]
[420269571,1775891438633,-7272.15774407,9.574e-05,2]
[420269639,1775891440436,-401.57758318,9.574e-05,2]
[420269645,1775891443040,-1608.44750031,9.574e-05,2]
[420269646,1775891443087,-717.80717244,9.574e-05,2]
[420269647,1775891443111,-150.99,9.574e-05,2]
[420269648,1775891443123,-200.0,9.594e-05,2]
[420269649,1775891443133,-522.87253904,9.594e-05,2]
[420269650,1775891443163,-338.88463178,9.594e-05,2]
[420269651,1775891443194,-896.29751747,9.594e-05,2]
[420269652,1775891443210,-500.0,9.594e-05,2]
[420269653,1775891443226,-500.0,9.594e-05,2]
[420269654,1775891443236,-500.0,9.594e-05,2]
[420269655,1775891443253,-500.0,9.594e-05,2]
[420269656,1775891443263,-500.0,9.594e-05,2]
[420269657,1775891443277,-500.0,9.594e-05,2]
[420269658,1775891443289,-500.0,9.594e-05,2]
[420269659,1775891443302,-413.97248253,9.594e-05,2]
[420269660,1775891443359,-86.02751747,9.594e-05,2]
[420269661,1775891443374,-500.0,9.594e-05,2]
[420269662,1775891443386,-449.12503358,9.594e-05,2]
[420269668,1775891447450,-50.87496642,9.594e-05,2]
[420269669,1775891447461,-400.0,9.6e-05,3]
[420269670,1775891447476,-500.0,9.616e-05,2]
[420269671,1775891447486,-500.0,9.671e-05,2]
[420269672,1775891447495,-204.72,9.673e-05,2]
[420269673,1775891447506,-888.56292437,9.7e-05,3]
[420269674,1775891447522,-11.43707563,9.7e-05,3]
[420269675,1775891447534,-150.0,9.7e-05,2]
[420269676,1775891447549,-500.0,9.705e-05,2]
[420269677,1775891447566,-500.0,9.705e-05,2]
[420269678,1775891447580,-150.0,9.705e-05,2]
[420269679,1775891447593,-500.0,9.705e-05,2]
[420269680,1775891447609,-500.0,9.705e-05,2]
[420269681,1775891447622,-150.0,9.705e-05,2]
[420269682,1775891447639,-208.583441,9.705e-05,2]
[420269683,1775891447657,-500.0,9.705e-05,2]
[420269684,1775891447669,-150.0,9.705e-05,2]
[420269685,1775891447689,-500.0,9.705e-05,2]
[420269686,1775891447705,-182.61826563,9.705e-05,2]
[420269687,1775891447716,-500.0,9.705e-05,2]
[420269688,1775891447743,-500.0,9.705e-05,2]
[420269689,1775891447757,-596.10133937,9.705e-05,2]
[420269690,1775891447773,-150.0,9.705e-05,2]
[420269691,1775891447805,-150.0,9.705e-05,2]
[420269692,1775891447854,-259.2666299,9.705e-05,2]
[420269693,1775891447890,-500.0,9.705e-05,2]
[420269694,1775891447937,-500.0,9.705e-05,2]
[420269695,1775891447955,-500.0,9.705e-05,2]
[420269696,1775891447968,-500.0,9.705e-05,2]
[420269697,1775891447988,-500.0,9.705e-05,2]
[420269698,1775891448014,-500.0,9.705e-05,2]
[420269699,1775891448030,-500.0,9.705e-05,2]
[420269700,1775891448048,-595.95697511,9.705e-05,2]
[420269701,1775891448059,-166.13607027,9.705e-05,2]
[420269702,1775891448082,-500.0,9.705e-05,2]
[420269703,1775891448103,-500.0,9.705e-05,2]
[420269704,1775891448127,-500.0,9.705e-05,2]
[420269705,1775891448152,-500.0,9.705e-05,2]
[420269706,1775891448162,-500.0,9.705e-05,2]
[420269707,1775891448180,-344.80964703,9.705e-05,2]
[420269708,1775891448197,-500.0,9.715e-05,2]
[420269709,1775891448210,-500.0,9.715e-05,2]
[420269710,1775891448231,-212.56472481,9.715e-05,2]
[420269711,1775891448243,-1500.0,9.749e-05,2]
[420269712,1775891448255,-2500.0,9.749e-05,2]
[420269713,1775891448274,-1400.0,9.8e-05,3]
[420269714,1775891448285,-166.66,9.891e-05,2]
[420269715,1775891448298,-1900.0,9.9e-05,3]
[420269716,1775891448316,-216.0,9.989e-05,2]
[420269717,1775891448326,-216.0,9.989e-05,2]
[420269718,1775891448341,-216.0,9.989e-05,2]
[420269719,1775891448357,-216.0,9.989e-05,2]
[420269720,1775891448371,-216.0,9.989e-05,2]
[420269721,1775891448387,-216.0,9.989e-05,2]
[420269722,1775891448398,-216.0,9.989e-05,2]
[420269723,1775891448410,-216.0,9.989e-05,2]
[420269724,1775891448433,-216.0,9.989e-05,2]
[420269725,1775891448443,-607.76074231,9.999e-05,2]
[420269726,1775891448462,-500.0,9.999e-05,2]
[420269727,1775891448480,-335.09077938,9.999e-05,2]
[420269728,1775891448501,-500.0,9.999e-05,2]
[420269729,1775891448523,-3202.55504115,0.0001,2]
[420269730,1775891448550,-5455.4998462,0.0001,2]
[420269731,1775891448569,-12352.40282733,0.0001,2]
[420269732,1775891490342,194.8915,9.407e-05,2]
[420269734,1775891633779,880.44,4.718e-05,2]
[420269735,1775891633985,880.44,4.966e-05,2]
[420269736,1775891634181,880.44,5.214e-05,2]
[420269737,1775891634369,880.44,5.463e-05,2]
[420269738,1775891634822,880.44,5.711e-05,2]
[420269739,1775891635022,880.44,5.959e-05,2]
[420269740,1775891635217,880.44,6.207e-05,2]
[420269741,1775891635446,880.44,6.456e-05,2]
[420269742,1775891635634,880.44,6.704e-05,2]
[420269743,1775891635883,880.44,6.952e-05,2]
[420269744,1775891636092,880.44,7.201e-05,2]
[420269745,1775891636485,315.17,7.449e-05,2]
[420269746,1775891636512,565.27,7.449e-05,2]
[420269747,1775891636724,880.44,7.697e-05,2]
[420269748,1775891636889,880.44,7.946e-05,2]
[420269749,1775891637193,880.44,8.194e-05,2]
[420269750,1775891637419,880.44,8.442e-05,2]
[420269751,1775891637614,880.44,8.69e-05,2]
[420269752,1775891637824,880.44,8.939e-05,2]
[420269753,1775891638048,880.44,9.187e-05,2]
[420269754,1775891638239,880.44,9.435e-05,2]
[420269755,1775891646874,1160.0,9.407e-05,3]
[420269756,1775891706275,1102.0,9.407e-05,3]
[420269757,1775891708703,129.22,9.407e-05,3]
[420269758,1775891708836,27.78,9.407e-05,3]
[420269759,1775891733681,9972.23,9.442e-05,2]
[420269760,1775891733715,10000.01,9.442e-05,2]
[420269761,1775891733748,10000.01,9.442e-05,2]
[420269762,1775891733782,10000.01,9.442e-05,2]
[420269763,1775891733820,10000.01,9.442e-05,2]
[420269764,1775891733855,10000.01,9.442e-05,2]
[420269765,1775891733882,10000.01,9.442e-05,2]
[420269766,1775891752006,-286.0,9.442e-05,2]
[420269767,1775891762484,300.0,9.441e-05,2]
[420269768,1775891768475,2152.632826,7.945e-05,2]
[420269769,1775891769678,1276.0,9.442e-05,3]
[420269770,1775891779149,-6076.485674,9.442e-05,2]
[420269771,1775891779226,-10000.01,9.442e-05,2]
[420269772,1775891779356,-10000.01,9.442e-05,2]
[420269773,1775891779914,-10000.01,9.442e-05,2]
[420269774,1775891779950,-10000.01,9.442e-05,2]
[420269775,1775891780022,-10000.01,9.442e-05,2]
[420269776,1775891780107,-10000.01,9.442e-05,2]
[420269777,1775891780279,-10000.01,9.442e-05,2]
[420269778,1775891780407,-10000.01,9.442e-05,2]
[420269779,1775891832916,-1000.0,9.395e-05,2]
[420269782,1775891863328,7063.508058,9.348e-05,2]
[420269783,1775891890649,10000.01,8.3e-05,2]
[420269784,1775891890676,10000.01,8.3e-05,2]
[420269785,1775891890707,533.76960208,8.3e-05,2]
[420269786,1775891890731,2650.15370026,8.3e-05,2]
[420269787,1775891890765,2650.15370026,8.3e-05,2]
[420269788,1775891890804,93526.7292973,8.3e-05,2]
[420269789,1775891894707,-746.0,9.348e-05,3]
[420269793,1775891961255,5000.01,9.048e-05,2]
[420269794,1775891961298,5000.01,9.048e-05,2]
[420269795,1775891961350,6.21,9.048e-05,2]
[420269796,1775892011139,1355.0,9.048e-05,3]
[420269797,1775892015076,157.0,9.048e-05,3]
[420269798,1775892020781,1500.0,9.005e-05,2]
[420269799,1775892044956,1630.95,8.971e-05,2]
[420269800,1775892065527,152.0,9.048e-05,3]
[420269801,1775892067768,4638.01,7.945e-05,2]
[420269802,1775892088893,3278.33,9.011e-05,2]
[420269803,1775892090278,300.72,9.253e-05,2]
[420269804,1775892092451,-4228.366787,9.253e-05,2]
[420269805,1775892114793,-161.0,9.048e-05,3]
[420269806,1775892124671,800.84,8.51e-05,2]
[420269807,1775892140021,-1348.0,9.048e-05,3]
[420269808,1775892140065,-171.0,9.048e-05,3]
[420269809,1775892142013,170.98,7.109e-05,2]
[420269810,1775892142246,170.98,8.886e-05,2]
[420269811,1775892172266,283.0,9.253e-05,2]
[420269812,1775892186979,1281.0,9.048e-05,3]
[420269813,1775892245078,1217.0,9.048e-05,3]
[420269814,1775892247938,-500.0,9.3e-05,2]
[420269815,1775892263221,-2500.0,9.342e-05,2]
[420269816,1775892305973,157.0,9.048e-05,3]
[420269817,1775892310063,-1543.276426,9.353e-05,2]
[420269818,1775892310107,-2278.03399934,9.376e-05,2]
[420269819,1775892310143,-291.45,9.4e-05,2]
[420269820,1775892310176,-300.0,9.422e-05,2]
[420269821,1775892310212,-300.0,9.422e-05,2]
[420269822,1775892310245,-274.48914932,9.422e-05,2]
[420269823,1775892310290,-25.51085068,9.422e-05,2]
[420269824,1775892310320,-1200.0,9.422e-05,2]
[420269825,1775892310349,-500.0,9.423e-05,2]
[420269826,1775892310378,-500.0,9.423e-05,2]
[420269827,1775892310406,-500.0,9.423e-05,2]
[420269828,1775892310434,-500.0,9.423e-05,2]
[420269829,1775892310462,-500.63542008,9.423e-05,2]
[420269830,1775892310491,-500.0,9.423e-05,2]
[420269831,1775892310521,-311.88887855,9.423e-05,2]
[420269832,1775892310550,-423.93970138,9.423e-05,2]
[420269833,1775892310630,-76.06029862,9.423e-05,2]
[420269834,1775892310659,-500.0,9.423e-05,2]
[420269835,1775892310690,-500.0,9.423e-05,2]
[420269836,1775892310720,-151.0,9.439e-05,2]
[420269837,1775892310751,-150.0,9.44e-05,2]
[420269838,1775892310779,-1199.95308627,9.441e-05,3]
[420269839,1775892310808,-1425.34333442,9.441e-05,2]
[420269840,1775892310846,-500.0,9.441e-05,2]
[420269841,1775892310887,-495.29656138,9.441e-05,2]
[420269842,1775892310945,-4.70343862,9.441e-05,2]
[420269843,1775892310995,-500.0,9.441e-05,2]
[420269844,1775892311037,-500.0,9.441e-05,2]
[420269845,1775892311086,-500.0,9.441e-05,2]
[420269846,1775892311137,-500.0,9.441e-05,2]
[420269847,1775892311186,-500.0,9.441e-05,2]
[420269848,1775892311259,-165.91662037,9.441e-05,2]
[420269849,1775892311319,-500.0,9.441e-05,2]
[420269850,1775892311367,-500.0,9.441e-05,2]
[420269851,1775892311412,-500.0,9.441e-05,2]
[420269852,1775892311452,-500.0,9.441e-05,2]
[420269853,1775892311497,-158.76988202,9.441e-05,2]
[420269854,1775892311546,-341.23011798,9.441e-05,2]
[420269855,1775892311594,-500.0,9.441e-05,2]
[420269856,1775892311652,-500.0,9.441e-05,2]
[420269857,1775892311706,-500.0,9.441e-05,2]
[420269858,1775892311799,-500.0,9.441e-05,2]
[420269859,1775892311904,-500.0,9.441e-05,2]
[420269860,1775892312008,-500.0,9.441e-05,2]
[420269861,1775892312078,-500.0,9.441e-05,2]
[420269862,1775892312129,-500.0,9.441e-05,2]
[420269863,1775892312178,-500.0,9.441e-05,2]
[420269864,1775892312244,-67.54976404,9.441e-05,2]
[420269865,1775892312302,157.0,9.048e-05,3]
[420269866,1775892312367,-634.22891187,9.423e-05,2]
[420269867,1775892312403,-503.63312798,9.423e-05,2]
[420269868,1775892312448,-182.45023596,9.441e-05,2]
[420269869,1775892312494,-500.0,9.441e-05,2]
[420269870,1775892312534,-500.0,9.441e-05,2]
[420269871,1775892312569,-500.0,9.441e-05,2]
[420269872,1775892312606,-500.0,9.441e-05,2]
[420269873,1775892312643,-500.0,9.441e-05,2]
[420269874,1775892312676,-500.0,9.441e-05,2]
[420269875,1775892312713,-626.1908444,9.441e-05,2]
[420269876,1775892312770,-500.0,9.441e-05,2]
[420269877,1775892312815,-500.0,9.441e-05,2]
[420269878,1775892312855,-217.44520383,9.441e-05,2]
[420269879,1775892312892,-500.0,9.441e-05,2]
[420269880,1775892312932,-500.0,9.441e-05,2]
[420269881,1775892312973,-500.0,9.441e-05,2]
[420269882,1775892313016,-500.0,9.441e-05,2]
[420269883,1775892313050,-500.0,9.441e-05,2]
[420269884,1775892313093,-500.0,9.441e-05,2]
[420269885,1775892313147,-500.0,9.441e-05,2]
[420269886,1775892313194,-65.11959234,9.441e-05,2]
[420269887,1775892313268,-434.88040766,9.441e-05,2]
[420269888,1775892313317,-500.0,9.441e-05,2]
[420269889,1775892313360,-500.0,9.441e-05,2]
[420269890,1775892313417,-500.0,9.441e-05,2]
[420269891,1775892313466,-500.0,9.441e-05,2]
[420269892,1775892313523,-500.0,9.441e-05,2]
[420269893,1775892313580,-500.0,9.441e-05,2]
[420269894,1775892313626,-285.33664011,9.441e-05,2]
[420269895,1775892313676,-500.0,9.441e-05,2]
[420269896,1775892313740,-500.0,9.441e-05,2]
[420269897,1775892313840,-250.0,9.441e-05,2]
[420269898,1775892314730,-500.0,9.441e-05,2]
[420269899,1775892314762,-416.89482115,9.441e-05,2]
[420269900,1775892314801,-500.0,9.441e-05,2]
[420269901,1775892314837,-500.0,9.441e-05,2]
[420269902,1775892314864,-500.0,9.441e-05,2]
[420269903,1775892314902,-500.0,9.441e-05,2]
[420269904,1775892314939,-513.74025972,9.441e-05,2]
[420269905,1775892314974,-500.0,9.441e-05,2]
[420269906,1775892315005,-150.99,9.441e-05,2]
[420269907,1775892315032,-150.99,9.441e-05,2]
[420269908,1775892318918,-0.02,9.441e-05,2]
[420269909,1775892320874,-0.04,9.441e-05,2]
[420269910,1775892321402,-0.08,9.441e-05,2]
[420269911,1775892324132,-0.16,9.441e-05,2]
[420269912,1775892324783,-0.32,9.441e-05,2]
[420269913,1775892325418,-0.64,9.441e-05,2]
[420269914,1775892325471,-1.28,9.441e-05,2]
[420269915,1775892325585,-2.56,9.441e-05,2]
[420269916,1775892326377,-5.12,9.441e-05,2]
[420269917,1775892327562,-10.24,9.441e-05,2]
[420269918,1775892329089,-20.48,9.441e-05,2]
[420269919,1775892329425,-3805.11294923,9.441e-05,2]
[420269920,1775892329513,-3846.07294923,9.441e-05,2]
[420269921,1775892329572,-2307.86410154,9.441e-05,2]
[420269922,1775892329584,-500.0,9.441e-05,2]
[420269923,1775892329604,-3345.75294923,9.442e-05,2]
[420269924,1775892329706,-841.60005077,9.442e-05,2]
[420269925,1775892329739,-151.046,9.442e-05,2]
[420269926,1775892329755,-9006.72394923,9.442e-05,2]
[420269927,1775892329843,-9998.73,9.442e-05,2]
[420269928,1775892329906,-9997.45,9.442e-05,2]
[420269929,1775892330517,5000.01,9.012e-05,2]
[420269930,1775892330538,5000.01,9.012e-05,2]
[420269931,1775892330559,3609.45,9.012e-05,2]
[420269932,1775892330687,-9994.89,9.442e-05,2]
[420269933,1775892332642,-9989.77,9.442e-05,2]
[420269934,1775892361619,300.0,9.441e-05,2]
[420269936,1775892364574,500.0,9.057e-05,2]
[420269938,1775892408864,200.0,9.02e-05,2]
[420269939,1775892420634,7963.0,9.342e-05,2]
[420269940,1775892421642,300.0,9.441e-05,2]
[420269941,1775892422902,150.0,9.441e-05,2]
[420269942,1775892427971,500.0,9.441e-05,2]
[420269943,1775892428010,500.0,9.441e-05,2]
[420269944,1775892428050,537.83359108,9.441e-05,2]
[420269945,1775892428240,2500.0,9.342e-05,2]
[420269946,1775892428996,300.0,8.8e-05,3]
[420269947,1775892430598,600.0,8.9e-05,3]
[420269948,1775892430670,161.0,9.057e-05,3]
[420269949,1775892432730,900.0,9e-05,3]
[420269950,1775892437905,3551.17640892,9.44e-05,2]
[420269951,1775892437937,10000.01,9.44e-05,2]
[420269952,1775892485491,1179.0,9.057e-05,3]
[420269953,1775892486684,3821.01,9.11e-05,2]
[420269954,1775892486712,2628.69,9.11e-05,2]
[420269955,1775892496610,3297.35,8.997e-05,2]
[420269956,1775892509941,-500.0,9.441e-05,2]
[420269957,1775892509978,-500.0,9.441e-05,2]
[420269958,1775892510010,-500.0,9.441e-05,2]
[420269959,1775892510047,-500.0,9.441e-05,2]
[420269960,1775892510089,-500.0,9.441e-05,2]
[420269961,1775892510134,-500.0,9.441e-05,2]
[420269962,1775892510168,-500.0,9.441e-05,2]
[420269963,1775892510203,-500.0,9.441e-05,2]
[420269964,1775892510240,-588.33618242,9.441e-05,2]
[420269965,1775892510270,-500.0,9.441e-05,2]
[420269966,1775892510314,-500.0,9.441e-05,2]
[420269967,1775892510349,-399.73564808,9.441e-05,2]
[420269968,1775892510382,-227.91712802,9.441e-05,2]
[420269969,1775892510420,-227.91712802,9.441e-05,2]
[420269970,1775892510460,-3556.09391346,9.442e-05,2]
[420269971,1775892519526,-10000.0,9.442e-05,2]
[420269972,1775892530122,-10000.0,9.442e-05,2]
[420269973,1775892538058,-10000.0,9.442e-05,2]
[420269974,1775892548455,523.55258513,9.352e-05,2]
[420269975,1775892548515,-300.0,9.441e-05,2]
[420269976,1775892548546,-1120.0,9.442e-05,3]
[420269977,1775892548575,-8580.0,9.442e-05,2]
[420269978,1775892572039,-10000.0,9.442e-05,2]
[420269979,1775892573202,-1907.79834,9.442e-05,2]
[420269980,1775892573414,-10000.0,9.442e-05,2]
[420269981,1775892574014,-10000.0,9.442e-05,2]
[420269982,1775892575961,-10000.0,9.442e-05,2]
[420269983,1775892576113,-10000.0,9.442e-05,2]
[420269984,1775892576220,-10000.0,9.442e-05,2]
[420269985,1775892576298,-10000.0,9.442e-05,2]
[420269986,1775892576412,-10000.0,9.442e-05,2]
[420269987,1775892576641,-513.45741487,9.442e-05,2]
[420269988,1775892576710,-10000.0,9.442e-05,2]
[420269989,1775892576747,-10000.01,9.442e-05,2]
[420269990,1775892576770,-10000.01,9.442e-05,2]
[420269991,1775892576914,-10000.0,9.442e-05,2]
[420269992,1775892577426,-10000.0,9.442e-05,2]
[420269993,1775892577498,-10000.01,9.442e-05,2]
[420269994,1775892577590,-249.41,9.041e-05,2]
[420269995,1775892577647,-10000.0,9.442e-05,2]
[420269996,1775892577674,-9750.6,9.442e-05,2]
[420269997,1775892577698,-249.41,9.442e-05,2]
[420269998,1775892577713,-9501.19,9.442e-05,2]
[420269999,1775892577859,-10000.0,9.442e-05,2]
[420270000,1775892578416,-10000.0,9.442e-05,2]
[420270001,1775892578892,-10000.0,9.442e-05,2]
[420270002,1775892579322,-10000.0,9.442e-05,2]
[420270003,1775892579687,-10000.0,9.442e-05,2]
[420270004,1775892580104,-10000.0,9.442e-05,2]
[420270005,1775892580591,-10000.0,9.442e-05,2]
[420270006,1775892580942,-10000.01,9.442e-05,2]
[420270007,1775892581221,-10000.0,9.442e-05,2]
[420270008,1775892581281,-10000.01,9.442e-05,2]
[420270009,1775892581318,-10000.01,9.442e-05,2]
[420270010,1775892581340,-10000.01,9.442e-05,2]
[420270011,1775892581380,-10000.01,9.442e-05,2]
[420270012,1775892581476,-10000.0,9.442e-05,2]
[420270013,1775892581936,-10000.0,9.442e-05,2]
[420270014,1775892582463,-10000.0,9.442e-05,2]
[420270015,1775892582874,-10000.0,9.442e-05,2]
[420270016,1775892583314,-1000.0,9.395e-05,2]
[420270017,1775892583364,-9000.0,9.442e-05,2]
[420270018,1775892583688,-10000.0,9.442e-05,2]
[420270019,1775892584639,-10000.0,9.442e-05,2]
[420270020,1775892584699,-10000.0,9.442e-05,2]
[420270021,1775892586612,-2500.0,9.342e-05,2]
[420270022,1775892586645,-7500.0,9.442e-05,2]
[420270023,1775892586799,-10000.0,9.442e-05,2]
[420270024,1775892587913,-10000.0,9.442e-05,2]
[420270025,1775892588303,-10000.0,9.442e-05,2]
[420270026,1775892589215,-10000.0,9.442e-05,2]
[420270027,1775892590410,-10000.0,9.442e-05,2]
[420270028,1775892591242,-10000.0,9.442e-05,2]
[420270029,1775892606071,-698.27887296,9e-05,2]
[420270044,1775892633558,-407.0,9.423e-05,2]
[420270045,1775892633583,-93.0,9.423e-05,2]
[420270046,1775892633595,-202.99999997,9.423e-05,2]
[420270047,1775892633607,-297.00000003,9.423e-05,2]
[420270048,1775892633627,-152.80508814,9.441e-05,2]
[420270049,1775892633657,-147.19491186,9.441e-05,2]
[420270050,1775892633673,-300.0,9.441e-05,2]
[420270051,1775892633682,-1200.0,9.441e-05,2]
[420270052,1775892633692,-150.0,9.441e-05,2]
[420270053,1775892633701,-500.0,9.441e-05,2]
[420270054,1775892633717,-500.0,9.441e-05,2]
[420270055,1775892633726,-500.0,9.441e-05,2]
[420270056,1775892633735,-500.0,9.441e-05,2]
[420270057,1775892633745,-500.0,9.441e-05,2]
[420270058,1775892633761,-500.0,9.441e-05,2]
[420270059,1775892633770,-500.0,9.441e-05,2]
[420270060,1775892633780,-500.0,9.441e-05,2]
[420270061,1775892633789,-500.0,9.441e-05,2]
[420270062,1775892633802,-500.0,9.441e-05,2]
[420270063,1775892633811,-500.0,9.441e-05,2]
[420270064,1775892633820,-500.0,9.441e-05,2]
[420270065,1775892633830,-500.0,9.441e-05,2]
[420270066,1775892633839,-500.0,9.441e-05,2]
[420270067,1775892633848,-500.0,9.441e-05,2]
[420270068,1775892633857,-500.0,9.441e-05,2]
[420270069,1775892633867,-281.24880126,9.441e-05,2]
[420270070,1775892633879,-35.81832117,9.441e-05,2]
[420270071,1775892633889,-1211.0,9.442e-05,3]
[420270072,1775892633898,-157.0,9.442e-05,3]
[420270073,1775892633907,-171.0,9.442e-05,3]
[420270074,1775892633917,-1567.69925269,9.442e-05,2]
[420270075,1775892633943,-772.83206182,9.442e-05,2]
[420270076,1775892633961,-134307.84582341,9.442e-05,2]
[420270081,1775892640798,-381.19373784,9.442e-05,2]
[420270082,1775892641099,-2742.37269276,9.442e-05,2]
[420270083,1775892641169,-396.70564202,9.442e-05,2]
[420270084,1775892641202,-875.50000001,9.442e-05,2]
[420270105,1775892644659,-3828.93786182,9.442e-05,2]
[420270106,1775892644904,-1444.01541444,9.442e-05,2]
[420270107,1775892644974,-892.43158724,9.442e-05,2]
[420270109,1775892646122,-3738.40000069,9.442e-05,2]
[420270110,1775892646522,-7792.85655,9.442e-05,2]
[420270142,1775892821055,1000.71926459,9e-05,2]
[420270143,1775892837345,-300.0,9.253e-05,2]
[420270144,1775892837370,-283.0,9.253e-05,2]
[420270145,1775892837405,-4087.583,9.254e-05,2]
[420270146,1775892837433,-156.549,9.254e-05,2]
[420270147,1775892837462,-151.0,9.339e-05,2]
[420270148,1775892837507,-151.0,9.339e-05,2]
[420270149,1775892837540,-150.0,9.341e-05,2]
[420270150,1775892837568,-500.0,9.341e-05,2]
[420270151,1775892837594,-500.0,9.341e-05,2]
[420270152,1775892837625,-326.82705804,9.341e-05,2]
[420270153,1775892837654,-1294.00124618,9.341e-05,2]
[420270154,1775892837695,-1294.00124618,9.341e-05,2]
[420270155,1775892837727,-806.0384496,9.341e-05,2]
[420270156,1775892846500,-500.0,9.323e-05,2]
[420270157,1775892846536,-609.735,9.323e-05,2]
[420270158,1775892846567,-300.0,9.338e-05,2]
[420270159,1775892846599,-650.0,9.34e-05,2]
[420270160,1775892846661,-487.96279658,9.341e-05,2]
[420270161,1775892846717,-1294.00124618,9.341e-05,2]
[420270162,1775892846753,-1294.00124618,9.341e-05,2]